fUSD/lending_fUSD_20260505
["ID","MTS","AMOUNT","RATE_DAILY","PERIOD"]
[421582547,1777919441000,-152.0,0.000217,2]
[421582542,1777919441000,-1447.15125663,0.00021233,2]
[421582549,1777919441000,-400.0,0.000217,2]
[421582532,1777919441000,-424.0,0.00021,2]
[421582546,1777919441000,-410.0,0.000217,2]
[421582541,1777919441000,-500.0,0.00021188,2]
[421582556,1777919441000,-409.5332629,0.000219,2]
[421582560,1777919441000,-161.69,0.00021918,10]
[421582553,1777919441000,-168.07639372,0.00021763,2]
[421582555,1777919441000,-726.41,0.000218,2]
[421582554,1777919441000,-406.0,0.00021768,2]
[421582564,1777919441000,-424.0,0.00022,2]
[421582552,1777919441000,-160.40456272,0.00021763,2]
[421582551,1777919441000,-407.0,0.000217,2]
[421582550,1777919441000,-150.0,0.000217,2]
[421582548,1777919441000,-403.0,0.000217,2]
[421582544,1777919441000,-627.81321657,0.00021644,2]
[421582563,1777919441000,-164.0,0.00022,2]
[421582614,1777919442000,-150.0,0.000252,2]
[421582617,1777919442000,-150.0,0.000252,2]
[421582616,1777919442000,-150.0,0.000252,2]
[421582624,1777919442000,-150.0,0.00025475,4]
[421582623,1777919442000,-150.0,0.0002543,4]
[421582621,1777919442000,-150.0,0.00025338,4]
[421582619,1777919442000,-150.0,0.00025246,4]
[421582622,1777919442000,-150.0,0.00025384,4]
[421582620,1777919442000,-150.0,0.00025292,4]
[421582626,1777919442000,-150.0,0.00025567,4]
[421582627,1777919442000,-150.0,0.00025613,4]
[421582628,1777919442000,-150.0,0.00025659,4]
[421582636,1777919442000,-150.0,0.00025934,4]
[421582637,1777919442000,-150.0,0.0002598,4]
[421582625,1777919442000,-150.0,0.00025521,4]
[421582630,1777919442000,-150.0,0.00025751,4]
[421582635,1777919442000,-726.41,0.000259,7]
[421582632,1777919442000,-150.0,0.00025797,4]
[421582631,1777919442000,-150.0,0.0002576,4]
[421582615,1777919442000,-150.94681551,0.000252,2]
[421582629,1777919442000,-150.0,0.00025705,4]
[421582618,1777919442000,-1447.15125663,0.00025233,2]
[421582596,1777919442000,-167.0,0.00024,2]
[421582608,1777919442000,-150.0,0.000252,7]
[421582600,1777919442000,-5529.0,0.000243,5]
[421582591,1777919442000,-1565.94,0.00023726,2]
[421582592,1777919442000,-150.0,0.00023796,2]
[421582594,1777919442000,-726.41,0.000239,7]
[421582593,1777919442000,-1447.15125663,0.000239,2]
[421582633,1777919442000,-150.0,0.00025843,4]
[421582597,1777919442000,-338.0,0.00024,2]
[421582599,1777919442000,-1852.42,0.00024294,2]
[421582598,1777919442000,-424.0,0.00024,2]
[421582613,1777919442000,-150.0,0.000252,2]
[421582602,1777919442000,-166.15,0.00024348,2]
[421582604,1777919442000,-1000.0,0.00024658,2]
[421582603,1777919442000,-250.8,0.00024658,2]
[421582612,1777919442000,-150.0,0.000252,2]
[421582601,1777919442000,-235.3,0.00024324,2]
[421582607,1777919442000,-900.0,0.00025062,2]
[421582605,1777919442000,-338.0,0.00025,2]
[421582609,1777919442000,-150.25307724,0.000252,2]
[421582606,1777919442000,-428.0,0.00025,2]
[421582610,1777919442000,-150.0,0.000252,2]
[421582611,1777919442000,-150.0,0.000252,2]
[421582634,1777919442000,-150.0,0.00025889,4]
[421582595,1777919442000,-6263.19,0.000239,2]
[421582639,1777919442000,-150.0,0.00026072,4]
[421582663,1777919442000,-150.0,0.00026807,4]
[421582665,1777919442000,-150.0,0.0002688,4]
[421582667,1777919442000,-800.0,0.000269,9]
[421582670,1777919442000,-150.0,0.00027036,4]
[421582669,1777919442000,-150.0,0.0002699,4]
[421582668,1777919442000,-150.0,0.00026944,4]
[421582666,1777919442000,-150.0,0.00026898,4]
[421582671,1777919442000,-150.0,0.00027082,4]
[421582674,1777919442000,-506.0,0.00027137,2]
[421582675,1777919442000,-150.0,0.00027174,4]
[421582686,1777919442000,-153.494,0.00027397,16]
[421582679,1777919442000,-1699.99160616,0.00027216,2]
[421582685,1777919442000,-150.0,0.00027357,4]
[421582677,1777919442000,-1684.906,0.00027196,15]
[421582687,1777919442000,-250.8,0.00027397,2]
[421582681,1777919442000,-150.0,0.0002722,4]
[421582682,1777919442000,-534.34186812,0.00027228,2]
[421582684,1777919442000,-150.0,0.00027311,4]
[421582683,1777919442000,-150.0,0.00027266,4]
[421582688,1777919442000,-300.0,0.00027397,2]
[421582638,1777919442000,-150.0,0.00026026,4]
[421582664,1777919442000,-150.0,0.00026852,4]
[421582672,1777919442000,-152.0,0.00027098,7]
[421582673,1777919442000,-150.0,0.00027128,4]
[421582662,1777919442000,-150.0,0.00026761,4]
[421582661,1777919442000,-150.0,0.00026715,4]
[421582647,1777919442000,-150.0,0.0002632,4]
[421582648,1777919442000,-150.0,0.00026348,4]
[421582643,1777919442000,-150.0,0.0002621,4]
[421582644,1777919442000,-150.0,0.00026256,4]
[421582641,1777919442000,-2000.0,0.00026148,2]
[421582642,1777919442000,-150.0,0.00026164,4]
[421582645,1777919442000,-235.3,0.00026296,2]
[421582646,1777919442000,-150.0,0.00026302,4]
[421582649,1777919442000,-166.15,0.00026357,2]
[421582650,1777919442000,-150.0,0.00026393,4]
[421582640,1777919442000,-150.0,0.00026118,4]
[421582653,1777919442000,-150.0,0.00026485,4]
[421582651,1777919442000,-900.0,0.00026432,2]
[421582654,1777919442000,-150.0,0.00026531,4]
[421582660,1777919442000,-150.0,0.00026669,4]
[421582656,1777919442000,-150.0,0.00026577,4]
[421582657,1777919442000,-59462.087212,0.00026599,2]
[421582659,1777919442000,-150.0,0.00026623,4]
[421582655,1777919442000,-1447.15125663,0.00026567,2]
[421582658,1777919442000,-150.0,0.000266,4]
[421582652,1777919442000,-150.0,0.00026439,4]
[421582715,1777919443000,-500.0,0.00027773,5]
[421582701,1777919443000,-4654.0205,0.000276,2]
[421582704,1777919443000,-150.0,0.00027679,7]
[421582703,1777919443000,-150.0,0.00027633,7]
[421582714,1777919443000,-150.0,0.0002777,7]
[421582705,1777919443000,-33123.0953,0.000277,2]
[421582708,1777919443000,-10873.7126508,0.000277,2]
[421582716,1777919443000,-165.21,0.00027797,2]
[421582702,1777919443000,-14347.74275024,0.0002763,2]
[421582706,1777919443000,-5000.0,0.000277,2]
[421582700,1777919443000,-2500.0,0.000276,2]
[421582695,1777919443000,-150.0,0.0002744,7]
[421582694,1777919443000,-150.0,0.00027403,7]
[421582693,1777919443000,-726.41,0.000274,7]
[421582698,1777919443000,-150.0,0.00027541,7]
[421582697,1777919443000,-150.0,0.00027495,7]
[421582692,1777919443000,-500.0,0.000274,7]
[421582691,1777919443000,-888.01,0.00027397,10]
[421582699,1777919443000,-150.0,0.00027587,7]
[421582689,1777919443000,-1278.73,0.00027397,10]
[421582690,1777919443000,-1065.61,0.00027397,10]
[421582696,1777919443000,-150.0,0.00027449,7]
[421582707,1777919443000,-82290.6884492,0.000277,2]
[421582724,1777919443000,-165.21,0.00027799,2]
[421582709,1777919443000,-382.88615424,0.000277,2]
[421582734,1777919443000,-281.35342616,0.000278,2]
[421582731,1777919443000,-1051.54314134,0.000278,2]
[421582732,1777919443000,-8337.507,0.000278,2]
[421582733,1777919443000,-9599.14585426,0.000278,2]
[421582729,1777919443000,-165.21,0.00027799,2]
[421582730,1777919443000,-165.21,0.00027799,2]
[421582725,1777919443000,-165.21,0.00027799,2]
[421582721,1777919443000,-165.21,0.00027797,2]
[421582727,1777919443000,-165.21,0.00027799,2]
[421582726,1777919443000,-165.21,0.00027799,2]
[421582710,1777919443000,-192.7365087,0.000277,2]
[421582722,1777919443000,-151.0,0.00027797,7]
[421582720,1777919443000,-165.21,0.00027797,2]
[421582719,1777919443000,-165.21,0.00027797,2]
[421582728,1777919443000,-165.21,0.00027799,2]
[421582717,1777919443000,-165.21,0.00027797,2]
[421582718,1777919443000,-165.21,0.00027797,2]
[421582713,1777919443000,-150.0,0.00027725,7]
[421582712,1777919443000,-889.32833921,0.000277,2]
[421582711,1777919443000,-749.45580797,0.000277,2]
[421582723,1777919443000,-154.76149843,0.00027797,7]
[421582735,1777919443000,-488.52303721,0.000278,2]
[421582738,1777919446000,-175.04254418,0.000154,2]
[421582741,1777919446000,-6117.98560384,0.000278,2]
[421582740,1777919446000,-1133.32773744,0.00027216,2]
[421582739,1777919446000,-454.47659631,0.0002,2]
[421582743,1777919448000,-538.12263382,0.000278,2]
[421582750,1777919448000,-374829.66171629,0.000278,2]
[421582742,1777919448000,-175.04254418,0.0002365,2]
[421582755,1777919449000,-673.3,0.000278,2]
[421582752,1777919449000,-755.55182496,0.00027216,2]
[421582753,1777919449000,-3828.82517504,0.000278,2]
[421582751,1777919449000,-120246.59004872,0.000278,2]
[421582759,1777919462000,642.50624976,0.00021,120]
[421582758,1777919462000,5000.0,0.000209,120]
[421582762,1777919790000,500.0,0.00027899,120]
[421582765,1777919791000,500.0,0.00027999,120]
[421582764,1777919791000,500.0,0.00027999,120]
[421582763,1777919791000,500.0,0.00027999,120]
[421582767,1777919792000,500.0,0.00027999,120]
[421582769,1777919792000,541.0,0.00027999,120]
[421582768,1777919792000,500.0,0.00027999,120]
[421582766,1777919792000,500.0,0.00027999,120]
[421582772,1777919870000,166.66,0.00023484,30]
[421582771,1777919870000,166.66,0.00023009,30]
[421582770,1777919870000,166.66,0.00022535,30]
[421582773,1777919871000,166.66,0.00023958,30]
[421582785,1777920632000,-300.0,0.00018855,2]
[421582784,1777920632000,-1337.30371513,0.00018767,2]
[421582783,1777920632000,-389.7,0.0001841,2]
[421582787,1777920632000,-781.23233017,0.00018856,2]
[421582782,1777920632000,-1289.58892491,0.00018219,2]
[421582780,1777920632000,-389.7,0.00016438,2]
[421582781,1777920632000,-200.0,0.00018219,2]
[421582786,1777920632000,-1200.0,0.00018855,2]
[421582789,1777920632000,-533.54,0.00018856,2]
[421582792,1777920632000,-3978.57724483,0.00019,2]
[421582790,1777920632000,-587.25,0.00018856,2]
[421582793,1777920632000,-110.62886097,0.00019,2]
[421582799,1777920632000,-1053.71656762,0.00019315,2]
[421582791,1777920632000,-300.0,0.00018998,2]
[421582794,1777920632000,-479.28213903,0.00019315,2]
[421582795,1777920632000,-629.50624976,0.00019315,2]
[421582796,1777920632000,-426.50159773,0.00019315,2]
[421582797,1777920632000,-150.99,0.00019315,2]
[421582798,1777920632000,-3739.27284865,0.00019315,2]
[421582788,1777920632000,-1485.45766983,0.00018856,2]
[421582879,1777920638000,-549.84281099,0.00019315,2]
[421582881,1777920638000,-17654.68797275,0.00019315,2]
[421582883,1777920638000,-426.84,0.00019315,2]
[421582880,1777920638000,-1181.64979999,0.00019315,2]
[421582887,1777920638000,-4501.59128991,0.0002,2]
[421582882,1777920638000,-1553.86,0.00019315,2]
[421582884,1777920638000,-236.0,0.0002,2]
[421582885,1777920638000,-296.0,0.0002,2]
[421582886,1777920638000,-9999.99,0.0002,2]
[421582959,1777920640000,-4681.16871009,0.0002,2]
[421582988,1777920640000,-3068.27,0.00023837,2]
[421582980,1777920640000,-5000.0,0.00023456,2]
[421582981,1777920640000,-150.0,0.00023469,2]
[421582974,1777920640000,-459.95,0.00022562,2]
[421582985,1777920640000,-17562.01,0.00023809,2]
[421582982,1777920640000,-500.0,0.00023547,2]
[421582983,1777920640000,-200.0,0.0002355,2]
[421582987,1777920640000,-150.0,0.00023834,2]
[421582989,1777920640000,-500.0,0.00023837,2]
[421582990,1777920640000,-188.45,0.00023849,2]
[421582997,1777920640000,-150.48,0.00024658,2]
[421582977,1777920640000,-236.0,0.00023,2]
[421582984,1777920640000,-2000.0,0.00023675,2]
[421582978,1777920640000,-296.0,0.00023,2]
[421582964,1777920640000,-1151.0,0.00020655,2]
[421582975,1777920640000,-506.25,0.00022562,2]
[421582986,1777920640000,-200.0,0.00023833,2]
[421582961,1777920640000,-389.7,0.00020381,2]
[421582971,1777920640000,-389.7,0.00022353,2]
[421582962,1777920640000,-420.0,0.00020555,2]
[421582960,1777920640000,-150.0,0.0002038,2]
[421582963,1777920640000,-166.72,0.00020595,2]
[421582976,1777920640000,-344.29618981,0.00023,2]
[421582972,1777920640000,-167.0,0.00022408,2]
[421582967,1777920640000,-162.48539177,0.00021834,2]
[421582966,1777920640000,-296.0,0.00021,2]
[421582970,1777920640000,-296.0,0.00022,2]
[421582968,1777920640000,-160.0,0.00021834,2]
[421582969,1777920640000,-236.0,0.00022,2]
[421582973,1777920640000,-1954.05,0.00022562,2]
[421582965,1777920640000,-236.0,0.00021,2]
[421582991,1777920640000,-236.0,0.00024,2]
[421582979,1777920640000,-195.28,0.00023442,2]
[421582992,1777920640000,-296.0,0.00024,2]
[421583021,1777920640000,-500.0,0.00026734,4]
[421583022,1777920640000,-500.0,0.00026734,4]
[421583015,1777920640000,-150.0,0.00026116,4]
[421583019,1777920640000,-150.0,0.00026623,4]
[421583013,1777920640000,-150.0,0.00025862,4]
[421583014,1777920640000,-150.0,0.00026031,4]
[421583012,1777920640000,-150.0,0.00025608,4]
[421583017,1777920640000,-150.0,0.00026369,4]
[421583018,1777920640000,-150.0,0.00026496,4]
[421583023,1777920640000,-508.21,0.00026734,4]
[421583024,1777920640000,-150.0,0.00026876,4]
[421583026,1777920640000,-150.0,0.0002713,4]
[421583025,1777920640000,-150.0,0.00026961,4]
[421582996,1777920640000,-166.66,0.00024432,30]
[421583016,1777920640000,-389.7,0.00026296,2]
[421583011,1777920640000,-150.0,0.00025566,4]
[421583020,1777920640000,-2000.0,0.00026635,2]
[421583008,1777920640000,-150.0,0.00025101,2]
[421582994,1777920640000,-182.54,0.00024193,2]
[421583010,1777920640000,-150.0,0.00025355,4]
[421582993,1777920640000,-4264.76,0.00024178,2]
[421582995,1777920640000,-389.7,0.00024324,2]
[421583009,1777920640000,-150.0,0.00025175,7]
[421583000,1777920640000,-248.0,0.00025,2]
[421582998,1777920640000,-166.66,0.00024907,30]
[421582999,1777920640000,-1000.0,0.0002492,2]
[421583002,1777920640000,-150.0,0.00025101,2]
[421583003,1777920640000,-150.0,0.00025101,2]
[421583005,1777920640000,-150.0,0.00025101,2]
[421583001,1777920640000,-312.0,0.00025,2]
[421583007,1777920640000,-150.0,0.00025101,2]
[421583006,1777920640000,-150.0,0.00025101,2]
[421583004,1777920640000,-150.0,0.00025101,2]
[421583060,1777920641000,-500.0,0.00027599,2]
[421583052,1777920641000,-308.40958089,0.00027599,2]
[421583051,1777920641000,-500.0,0.00027599,2]
[421583054,1777920641000,-549.84143436,0.00027599,2]
[421583058,1777920641000,-500.0,0.00027599,2]
[421583053,1777920641000,-500.0,0.00027599,2]
[421583057,1777920641000,-500.0,0.00027599,2]
[421583059,1777920641000,-500.0,0.00027599,2]
[421583066,1777920641000,-500.0,0.00027599,2]
[421583061,1777920641000,-500.0,0.00027599,2]
[421583056,1777920641000,-500.0,0.00027599,2]
[421583073,1777920641000,-500.0,0.00027599,2]
[421583063,1777920641000,-500.0,0.00027599,2]
[421583065,1777920641000,-500.0,0.00027599,2]
[421583044,1777920641000,-2065.09,0.0002759,2]
[421583062,1777920641000,-500.0,0.00027599,2]
[421583064,1777920641000,-500.0,0.00027599,2]
[421583055,1777920641000,-500.0,0.00027599,2]
[421583045,1777920641000,-2070.86777152,0.00027598,2]
[421583050,1777920641000,-500.0,0.00027599,2]
[421583046,1777920641000,-186.10679675,0.00027599,2]
[421583034,1777920641000,-1177.01,0.00027397,10]
[421583035,1777920641000,-980.84,0.00027397,10]
[421583027,1777920641000,-509.0,0.00027137,2]
[421583033,1777920641000,-753.85,0.00027397,10]
[421583030,1777920641000,-150.0,0.00027383,4]
[421583032,1777920641000,-525.3,0.00027397,2]
[421583029,1777920641000,-163.06,0.00027137,15]
[421583031,1777920641000,-150.48,0.00027397,2]
[421583028,1777920641000,-1883.589,0.00027137,15]
[421583036,1777920641000,-1915.24694212,0.000274,7]
[421583037,1777920641000,-150.0,0.00027426,7]
[421583038,1777920641000,-1900.0,0.000275,10]
[421583041,1777920641000,-2065.09,0.0002759,2]
[421583039,1777920641000,-1200.0,0.000275,10]
[421583067,1777920641000,-500.0,0.00027599,2]
[421583047,1777920641000,-223.85977767,0.00027599,2]
[421583049,1777920641000,-263.90740319,0.00027599,2]
[421583040,1777920641000,-500.0,0.00027573,5]
[421583042,1777920641000,-2065.09,0.0002759,2]
[421583043,1777920641000,-2065.09,0.0002759,2]
[421583068,1777920641000,-500.0,0.00027599,2]
[421583071,1777920641000,-500.0,0.00027599,2]
[421583072,1777920641000,-500.0,0.00027599,2]
[421583096,1777920641000,-500.0,0.00027599,2]
[421583091,1777920641000,-500.0,0.00027599,2]
[421583094,1777920641000,-269.44240692,0.00027599,2]
[421583100,1777920641000,-500.0,0.00027599,2]
[421583099,1777920641000,-500.0,0.00027599,2]
[421583102,1777920641000,-500.0,0.00027599,2]
[421583105,1777920641000,-500.0,0.00027599,2]
[421583069,1777920641000,-500.0,0.00027599,2]
[421583095,1777920641000,-500.0,0.00027599,2]
[421583104,1777920641000,-500.0,0.00027599,2]
[421583107,1777920641000,-2500.0,0.00027599,2]
[421583103,1777920641000,-626.31145444,0.00027599,2]
[421583106,1777920641000,-5000.0,0.00027599,2]
[421583109,1777920641000,-3800.0,0.000276,10]
[421583111,1777920641000,-2500.0,0.000276,10]
[421583113,1777920641000,-776.90309751,0.000276,6]
[421583112,1777920641000,-246248.88833364,0.000276,6]
[421583110,1777920641000,-1570.3910523,0.000276,2]
[421583108,1777920641000,-480.0496563,0.000276,2]
[421583097,1777920641000,-500.0,0.00027599,2]
[421583101,1777920641000,-500.0,0.00027599,2]
[421583092,1777920641000,-500.0,0.00027599,2]
[421583093,1777920641000,-500.0,0.00027599,2]
[421583070,1777920641000,-500.0,0.00027599,2]
[421583074,1777920641000,-500.0,0.00027599,2]
[421583076,1777920641000,-500.0,0.00027599,2]
[421583075,1777920641000,-500.0,0.00027599,2]
[421583085,1777920641000,-500.0,0.00027599,2]
[421583077,1777920641000,-500.0,0.00027599,2]
[421583079,1777920641000,-500.0,0.00027599,2]
[421583086,1777920641000,-500.0,0.00027599,2]
[421583078,1777920641000,-500.0,0.00027599,2]
[421583083,1777920641000,-500.0,0.00027599,2]
[421583082,1777920641000,-500.0,0.00027599,2]
[421583080,1777920641000,-500.0,0.00027599,2]
[421583081,1777920641000,-500.0,0.00027599,2]
[421583088,1777920641000,-500.0,0.00027599,2]
[421583087,1777920641000,-500.0,0.00027599,2]
[421583098,1777920641000,-500.0,0.00027599,2]
[421583089,1777920641000,-500.0,0.00027599,2]
[421583090,1777920641000,-500.0,0.00027599,2]
[421583084,1777920641000,-500.0,0.00027599,2]
[421583118,1777920643000,-152974.20856885,0.000276,6]
[421583117,1777920643000,-817.36,0.00027589,10]
[421583119,1777920643000,-1889.15941613,0.000276,2]
[421583120,1777920643000,-175.04254418,0.000276,2]
[421583121,1777920643000,-150.0,0.00027637,7]
[421583125,1777920643000,-200.44978078,0.00027689,2]
[421583127,1777920643000,-193267.92593481,0.00027699,2]
[421583126,1777920643000,-200.0,0.00027698,2]
[421583124,1777920643000,-2065.09,0.00027678,2]
[421583122,1777920643000,-150.0,0.00027673,5]
[421583128,1777920643000,-43.70188885,0.00027699,2]
[421583130,1777920643000,-62473.00092455,0.00027699,2]
[421583129,1777920643000,-369022.42321072,0.00027699,2]
[421583123,1777920643000,-500.0,0.00027673,5]
[421583134,1777920646000,-3300.31585,0.00027699,2]
[421583133,1777920646000,-6148.77728465,0.00027699,2]
[421583132,1777920646000,-9606.86419831,0.00027699,2]
[421583142,1777920718000,177.81,0.00026864,120]
[421583143,1777921751000,326.85,0.00025941,120]
[421583144,1777921752000,326.85,0.00028824,120]
[421583167,1777921769000,-175.37122365,0.00017548,2]
[421583166,1777921769000,-164.1108,0.000175,2]
[421583146,1777921769000,-250.0,0.00014,2]
[421583147,1777921769000,-175.8429873,0.00014,2]
[421583150,1777921769000,-159.78,0.00016125,2]
[421583149,1777921769000,-300.0,0.00016,2]
[421583148,1777921769000,-300.0,0.00014724,2]
[421583152,1777921769000,-165.548992,0.00016915,2]
[421583151,1777921769000,-252.7,0.00016438,2]
[421583153,1777921769000,-300.0,0.00016999,2]
[421583154,1777921769000,-300.0,0.00016999,2]
[421583145,1777921769000,-159.78,0.00012094,2]
[421583156,1777921769000,-200.0,0.00017,2]
[421583157,1777921769000,-151.0,0.00017,2]
[421583158,1777921769000,-151.0,0.00017,2]
[421583159,1777921769000,-151.0,0.00017,2]
[421583160,1777921769000,-151.0,0.00017,2]
[421583162,1777921769000,-151.0,0.00017,2]
[421583163,1777921769000,-151.0,0.00017,2]
[421583161,1777921769000,-151.0,0.00017,2]
[421583165,1777921769000,-1289.58892492,0.00017,2]
[421583164,1777921769000,-159.03148013,0.00017,2]
[421583155,1777921769000,-300.0,0.00016999,2]
[421583198,1777921832000,-300.0,0.00021777,2]
[421583202,1777921832000,-281.0,0.00022,2]
[421583200,1777921832000,-153.0,0.00022,2]
[421583205,1777921832000,-485.0,0.00022407,2]
[421583194,1777921832000,-186.0,0.00021,2]
[421583195,1777921832000,-153.0,0.00021,2]
[421583197,1777921832000,-281.0,0.00021,2]
[421583196,1777921832000,-155.0,0.00021,2]
[421583203,1777921832000,-4499.18688951,0.00022314,2]
[421583210,1777921832000,-1131.33,0.00022562,2]
[421583199,1777921832000,-186.0,0.00022,2]
[421583204,1777921832000,-252.7,0.00022353,2]
[421583206,1777921832000,-160.18511379,0.00022407,2]
[421583207,1777921832000,-160.18511376,0.00022407,2]
[421583208,1777921832000,-160.18511376,0.00022407,2]
[421583217,1777921832000,-281.0,0.00023,2]
[421583213,1777921832000,-186.0,0.00023,2]
[421583193,1777921832000,-162.0,0.00021,2]
[421583201,1777921832000,-157.0,0.00022,2]
[421583184,1777921832000,-155.0,0.0002,2]
[421583182,1777921832000,-186.0,0.0002,2]
[421583187,1777921832000,-281.0,0.0002,2]
[421583171,1777921832000,-24.62877635,0.00017548,2]
[421583174,1777921832000,-2219.36639803,0.00017766,2]
[421583173,1777921832000,-4160.11821736,0.00017766,2]
[421583179,1777921832000,-394.73878257,0.00019303,2]
[421583176,1777921832000,-420.0,0.00018567,2]
[421583178,1777921832000,-1312.35,0.00018856,2]
[421583175,1777921832000,-252.7,0.0001841,2]
[421583177,1777921832000,-1200.0,0.00018855,2]
[421583190,1777921832000,-252.7,0.00020381,2]
[421583180,1777921832000,-300.0,0.00019999,2]
[421583181,1777921832000,-156.0,0.0002,2]
[421583192,1777921832000,-736.0,0.00020999,2]
[421583183,1777921832000,-153.0,0.0002,2]
[421583185,1777921832000,-159.88106316,0.0002,2]
[421583189,1777921832000,-159.78,0.00020156,2]
[421583191,1777921832000,-1680.0,0.00020655,2]
[421583186,1777921832000,-159.88106317,0.0002,2]
[421583188,1777921832000,-150.99,0.0002,2]
[421583215,1777921832000,-163.0,0.00023,2]
[421583219,1777921832000,-150.0,0.0002305,2]
[421583172,1777921832000,-241.21825857,0.00017766,2]
[421583211,1777921832000,-1944.0,0.00022627,2]
[421583259,1777921832000,-254.74850454,0.00025101,2]
[421583266,1777921832000,-150.0,0.000252,7]
[421583270,1777921832000,-200.0,0.00026006,2]
[421583272,1777921832000,-166.66,0.00026193,30]
[421583274,1777921832000,-252.7,0.00026296,2]
[421583284,1777921832000,-292.93,0.00026864,2]
[421583286,1777921832000,-166.66,0.00026864,30]
[421583290,1777921832000,-445.0,0.00027062,10]
[421583257,1777921832000,-150.0,0.00025101,2]
[421583292,1777921832000,-776.0,0.00027062,10]
[421583296,1777921832000,-1895.0,0.00027123,2]
[421583276,1777921832000,-151.1837373,0.00026453,2]
[421583280,1777921832000,-2000.0,0.00026864,2]
[421583278,1777921832000,-174.61919141,0.00026453,2]
[421583282,1777921832000,-197.68,0.00026864,2]
[421583300,1777921832000,-1354.0,0.00027213,2]
[421583298,1777921832000,-1461.44618018,0.00027159,2]
[421583209,1777921832000,-377.79,0.00022466,2]
[421583294,1777921832000,-2168.0,0.00027123,2]
[421583250,1777921832000,-202.0,0.00025,2]
[421583288,1777921832000,-181.08010149,0.00027001,2]
[421583262,1777921832000,-150.00000001,0.00025101,2]
[421583221,1777921832000,-326.85,0.00023059,2]
[421583260,1777921832000,-150.0,0.00025101,2]
[421583223,1777921832000,-500.0,0.00023561,2]
[421583225,1777921832000,-442.82315901,0.0002364,2]
[421583242,1777921832000,-6994.97585295,0.00024483,2]
[421583235,1777921832000,-159.78,0.00024187,2]
[421583239,1777921832000,-252.7,0.00024324,2]
[421583237,1777921832000,-150.0,0.000242,2]
[421583229,1777921832000,-186.0,0.00024,2]
[421583231,1777921832000,-281.0,0.00024,2]
[421583227,1777921832000,-200.0,0.00023857,2]
[421583256,1777921832000,-150.0,0.00025101,2]
[421583246,1777921832000,-150.48,0.00024658,2]
[421583264,1777921832000,-166.13,0.00025158,2]
[421583233,1777921832000,-500.0,0.00024187,2]
[421583248,1777921832000,-5000.0,0.00024699,2]
[421583252,1777921832000,-296.0,0.00025,2]
[421583254,1777921832000,-150.87380379,0.00025101,2]
[421583268,1777921832000,-166.66,0.00025521,30]
[421583244,1777921832000,-1000.0,0.00024658,2]
[421583340,1777921833000,-584.88900405,0.00027598,2]
[421583342,1777921833000,-500.0,0.00027598,2]
[421583344,1777921833000,-500.0,0.00027598,2]